fUSD/lending_fUSD_20240126
["ID","MTS","AMOUNT","RATE_DAILY","PERIOD"]
[312822100,1706297444674,-489078.75075138,0.00042,30]
[312822101,1706297444685,-594.54602477,0.00042,4]
[312822102,1706297444699,-522.26660941,0.00042,120]
[312822103,1706297444710,-9441.66628683,0.00042,2]
[312822104,1706297444721,-150.0,0.00042,2]
[312822105,1706297444732,-300.0,0.00042,2]
[312822106,1706297444742,-603.25,0.00042205,2]
[312822107,1706297444754,-549.03074208,0.00042304,5]
[312822108,1706297444765,-150.0,0.00042394,2]
[312822109,1706297444776,-279.69091136,0.00042548,2]
[312822110,1706297444789,-150.79,0.0004289,2]
[312822111,1706297444800,-158.38,0.000429,3]
[312822112,1706297444812,-158.38,0.000429,3]
[312822113,1706297444824,-2981.5,0.000429,4]
[312822114,1706297444836,-2981.5,0.000429,4]
[312822115,1706297444848,-2981.5,0.000429,4]
[312822116,1706297444860,-2981.5,0.000429,4]
[312822117,1706297444871,-2981.5,0.000429,4]
[312822118,1706297444883,-2981.5,0.000429,4]
[312822119,1706297444896,-2981.5,0.000429,4]
[312822120,1706297444910,-2981.5,0.000429,4]
[312822121,1706297444921,-2981.5,0.000429,4]
[312822122,1706297444933,-2981.5,0.000429,4]
[312822123,1706297444946,-2981.5,0.000429,4]
[312822124,1706297444958,-2981.5,0.000429,4]
[312822125,1706297444971,-2981.5,0.000429,4]
[312822126,1706297444985,-2981.5,0.000429,4]
[312822127,1706297444997,-2981.5,0.000429,4]
[312822128,1706297445009,-2981.5,0.000429,4]
[312822129,1706297445020,-2981.5,0.000429,4]
[312822130,1706297445031,-2981.5,0.000429,4]
[312822131,1706297445043,-2981.5,0.000429,4]
[312822132,1706297445054,-2981.5,0.000429,4]
[312822133,1706297445065,-153.09,0.000429,4]
[312822134,1706297445076,-153.09,0.000429,4]
[312822135,1706297445087,-153.09,0.000429,4]
[312822136,1706297445098,-153.09,0.000429,4]
[312822137,1706297445109,-153.09,0.000429,4]
[312822138,1706297445121,-153.09,0.000429,4]
[312822139,1706297445132,-2015.49777583,0.00042937,11]
[312822140,1706297445146,-150.79,0.0004298,2]
[312822141,1706297445158,-150.79,0.0004298,2]
[312822142,1706297445169,-150.79,0.0004299,2]
[312822143,1706297445179,-101696.593083,0.0004299,10]
[312822144,1706297445188,-150.79,0.0004299,2]
[312822145,1706297445198,-150.79,0.0004299,2]
[312822146,1706297445207,-50000.0,0.00043,23]
[312822147,1706297445217,-86377.99468441,0.00043,30]
[312822148,1706297445226,-275.66,0.00043,7]
[312822149,1706297445235,-800.0,0.00043053,8]
[312822150,1706297445245,-1042.93754286,0.00043172,17]
[312822151,1706297445255,-485.54926443,0.000432,2]
[312822152,1706297445431,-150.0,0.00043403,2]
[312822153,1706297445444,-153.10771567,0.00043591,20]
[312822154,1706297445453,-603.25,0.00043677,2]
[312822155,1706297445462,-2000.0,0.0004379,4]
[312822156,1706297445471,-275.66,0.000438,7]
[312822157,1706297445480,-338352.75850276,0.000439,3]
[312822158,1706297445489,-4412.58131053,0.000439,30]
[312822159,1706297445498,-150.79,0.0004399,2]
[312822160,1706297445507,-43591.65550356,0.00044,24]
[312822161,1706297445522,-6408.34449644,0.00044,24]
[312822162,1706297445532,-6711.28150874,0.00044,30]
[312822163,1706297445541,-700.0,0.00044,14]
[312822164,1706297445550,-549.03074208,0.00044067,5]
[312822165,1706297445559,-745.16,0.00044085,15]
[312822166,1706297445569,-1000.0,0.000441,2]
[312822167,1706297445578,-274.99,0.00044221,2]
[312822168,1706297445586,-150.0,0.00044412,2]
[312822169,1706297445596,-22407.68569728,0.00044451,5]
[312822170,1706297445605,-1042.93754286,0.00044455,19]
[312822171,1706297445614,-1863.0,0.0004449,3]
[312822172,1706297445623,-150.79,0.0004458,2]
[312822173,1706297445631,-28990.0,0.0004459,3]
[312822174,1706297445641,-14028.0,0.0004459,3]
[312822175,1706297445650,-150.79,0.00044668,2]
[312822176,1706297445659,-150.79,0.00044668,2]
[312822177,1706297445668,-150.79,0.00044668,2]
[312822178,1706297445678,-150.79,0.00044668,2]
[312822179,1706297445686,-150.79,0.00044668,2]
[312822180,1706297445697,-150.79,0.00044668,2]
[312822181,1706297445706,-150.79,0.00044669,2]
[312822182,1706297445716,-150.79,0.00044669,2]
[312822183,1706297445724,-184.65458565,0.00044677,4]
[312822184,1706297445733,-237.92994928,0.00044677,4]
[312822185,1706297445743,-101696.593083,0.00044679,10]
[312822186,1706297445753,-2812.4,0.00044689,15]
[312822187,1706297445762,-2812.4,0.00044689,15]
[312822188,1706297445771,-2812.4,0.00044689,15]
[312822190,1706297445781,-2812.4,0.00044689,15]
[312822192,1706297445790,-2812.4,0.00044689,15]
[312822193,1706297445799,-2812.4,0.00044689,15]
[312822195,1706297445808,-2812.4,0.00044689,15]
[312822198,1706297445818,-2812.4,0.00044689,15]
[312822199,1706297445827,-2812.4,0.00044689,15]
[312822200,1706297445836,-2812.4,0.00044689,15]
[312822201,1706297445846,-485.54926443,0.0004469,2]
[312822202,1706297445855,-275.66,0.000447,7]
[312822203,1706297445864,-6172.01,0.000447,7]
[312822204,1706297445873,-1931.59,0.00044851,120]
[312822205,1706297445883,-150.79,0.00044902,2]
[312822206,1706297445893,-1000.0,0.00044912,2]
[312822207,1706297445902,-150.79,0.0004499,2]
[312822208,1706297445912,-2405.0,0.0004499,2]
[312822209,1706297445922,-1226.0,0.0004499,2]
[312822210,1706297445931,-24837.00961345,0.00045,25]
[312822211,1706297445942,-25162.99038655,0.00045,25]
[312822212,1706297445951,-316.01671829,0.00045,2]
[312822213,1706297445960,-674.19308062,0.00045,30]
[312822214,1706297445969,-1769.269345,0.00045,17]
[312822215,1706297445978,-928.64932748,0.00045,30]
[312822216,1706297445987,-211.0,0.00045,2]
[312822217,1706297445998,-6026.0,0.00045,2]
[312822218,1706297446007,-603.25,0.00045149,2]
[312822219,1706297446017,-150.79,0.00045182,2]
[312822220,1706297446026,-55555.0,0.00045192,5]
[312822221,1706297446035,-153.10771567,0.00045292,26]
[312822222,1706297446044,-3333.20017639,0.000453,7]
[312822223,1706297446058,-2838.80982361,0.000453,7]
[312822224,1706297446068,-20183.36310651,0.0004538,7]
[312822225,1706297446078,-150.0,0.00045422,2]
[312822226,1706297446087,-275.66,0.000455,7]
[312822227,1706297446097,-1042.93754286,0.00045737,21]
[312822228,1706297446107,-549.03074208,0.00045829,5]
[312822229,1706297446116,-409.58659315,0.000459,7]
[312822230,1706297446126,-150.79,0.0004599,2]
[312822231,1706297446135,-50000.0,0.00046,26]
[312822232,1706297446144,-485.54926443,0.0004618,2]
[312822233,1706297446153,-6172.01,0.000462,7]
[312822234,1706297446163,-150.0,0.00046431,2]
[312822235,1706297446172,-274.99,0.00046485,2]
[312822236,1706297446181,-187.5,0.00046575,120]
[312822237,1706297446191,-1000.0,0.000468,2]
[312822238,1706297446200,-150.79,0.0004699,2]
[312822239,1706297446209,-153.10771567,0.00046993,33]
[312822240,1706297446219,-6677.87521169,0.00047,27]
[312822241,1706297446231,-37061.2,0.00047,27]
[312822242,1706297446242,-6260.92478831,0.00047,27]
[312822243,1706297446252,-1042.93754286,0.00047019,22]
[312822244,1706297446261,-6172.01,0.000471,7]
[312822245,1706297446271,-2015.49777583,0.00047258,13]
[312822246,1706297446282,-150.0,0.0004744,2]
[312822247,1706297446292,-150.79,0.00047581,2]
[312822248,1706297446301,-549.03074208,0.00047591,5]
[312822249,1706297446311,-485.54926443,0.0004767,2]
[312822250,1706297446320,-155.0,0.00047701,15]
[312822251,1706297446330,-745.16,0.00047821,15]
[312822252,1706297446339,-150.79,0.0004799,2]
[312822253,1706297446349,-18068.30988649,0.00048,28]
[312822254,1706297446360,-31931.69011351,0.00048,28]
[312822255,1706297446369,-1809.37,0.00048,5]
[312822256,1706297446378,-2406.33712838,0.00048,14]
[312822257,1706297446387,-5004.84193737,0.00048,14]
[312822258,1706297446397,-208.0,0.00048028,40]
[312822259,1706297446407,-1042.93754286,0.00048302,24]
[312822260,1706297446416,-3761.48,0.00048326,120]
[312822261,1706297446425,-150.0,0.0004845,2]
[312822262,1706297446435,-150.79,0.0004849,2]
[312822263,1706297446444,-158.38,0.000485,3]
[312822264,1706297446454,-158.38,0.000485,3]
[312822265,1706297446463,-2981.5,0.000485,6]
[312822266,1706297446472,-2981.5,0.000485,6]
[312822267,1706297446481,-2981.5,0.000485,6]
[312822268,1706297446492,-2981.5,0.000485,6]
[312822269,1706297446501,-2981.5,0.000485,6]
[312822270,1706297446510,-2981.5,0.000485,6]
[312822271,1706297446519,-2981.5,0.000485,6]
[312822272,1706297446528,-2981.5,0.000485,6]
[312822273,1706297446538,-2981.5,0.000485,6]
[312822274,1706297446547,-2981.5,0.000485,6]
[312822275,1706297446555,-2981.5,0.000485,6]
[312822276,1706297446565,-2981.5,0.000485,6]
[312822277,1706297446574,-2981.5,0.000485,6]
[312822278,1706297446583,-2607.05426691,0.000485,6]
[312822279,1706297447211,-2500.0,0.00022342,2]
[312822280,1706297447221,-4748.00555523,0.00024144,2]
[312822281,1706297447233,-371.07384069,0.00024144,2]
[312822286,1706297448350,404.42543092,0.00021,2]
[312822287,1706298066618,-3865.7058748,0.0002234,2]
[312822288,1706298066641,-1000.0,0.00022341,2]
[312822300,1706298632228,-1043.86627593,0.00024143,2]
[312822301,1706298632237,-162.01,0.00024658,2]
[312822302,1706298632246,-166.40732384,0.000249,2]
[312822303,1706298632256,-1903.14431336,0.00025,2]
[312822304,1706298632265,-152.88,0.00025326,2]
[312822305,1706298632274,-171.80004697,0.00025496,2]
[312822306,1706298632286,-232.62538395,0.00025496,2]
[312822307,1706298632295,-162.01,0.00025685,2]
[312822308,1706298632304,-152.29260605,0.00026712,2]
[312822309,1706298632316,-9.71739395,0.00026712,2]
[312822310,1706298632325,-250.0,0.00026966,2]
[312822311,1706298632334,-150.0,0.00027,2]
[312822312,1706298632343,-423.18260605,0.000271,2]
[312822313,1706298632358,-76.81739395,0.000271,2]
[312822314,1706298632367,-224.66260605,0.000271,2]
[312822315,1706298632381,-363.20739395,0.000271,2]
[312822316,1706298632390,-176.4,0.00027105,2]
[312822317,1706298632399,-200.0,0.00027127,2]
[312822318,1706298632408,-23.10260605,0.00027166,2]
[312822319,1706298632419,-331.71739395,0.00027166,2]
[312822320,1706298632428,-108.28260605,0.00027192,2]
[312822321,1706298632440,-61.25739395,0.00027192,2]
[312822322,1706298632449,-250.0,0.00027331,2]
[312822323,1706298632459,-221.54260605,0.00027341,2]
[312822324,1706298632471,-677.100004,0.00027341,2]
[312822325,1706298632503,-101.35738995,0.00027341,2]
[312822327,1706298632513,-250.0,0.00027353,2]
[312822328,1706298632522,-58.82637821,0.0002736,2]
[312822331,1706298632533,-400.0,0.0002736,2]
[312822333,1706298632545,-1541.17362179,0.0002736,2]
[312822334,1706298632554,-191.03,0.00027454,2]
[312822336,1706298632563,-150.0,0.00027566,2]
[312822338,1706298632572,-1880.74,0.00027567,2]
[312822341,1706298632582,-23900.0,0.00027583,2]
[312822342,1706298632591,-964.72,0.00027671,2]
[312822344,1706298632600,-159.8,0.00027695,2]
[312822347,1706298632610,-152.88,0.00027715,2]
[312822348,1706298632619,-162.01,0.0002774,2]
[312822351,1706298632629,-690.05355161,0.00028,2]
[312822353,1706298632640,-171.98,0.00028074,2]
[312822355,1706298632649,-810.0,0.000282,2]
[312822357,1706298632662,-2327.0,0.000283,2]
[312822359,1706298632671,-964.72,0.00028695,2]
[312822361,1706298632680,-162.01,0.00028767,2]
[312822363,1706298632690,-1287.72,0.00028785,2]
[312822365,1706298632698,-191.03,0.00029098,2]
[312822367,1706298632708,-964.72,0.00029719,2]
[312822369,1706298632717,-162.01,0.00029795,2]
[312822371,1706298632726,-3626.59861431,0.00029796,2]
[312822373,1706298632739,-1358.5,0.00029796,2]
[312822376,1706298632756,-1972.83445768,0.00029796,2]
[312822378,1706298632767,-8407.36545714,0.00029796,2]
[312822380,1706298632778,-365.93071012,0.00029796,2]
[312822382,1706298632788,-613.84332002,0.00029796,2]
[312822384,1706298632799,-7652.70891006,0.00029796,2]
[312822387,1706298632810,-604.7260143,0.00029796,2]
[312822389,1706298632821,-547.40747628,0.00029796,2]
[312822391,1706298632832,-817.36783253,0.00029796,2]
[312822393,1706298632843,-576.57357286,0.00029796,2]
[312822395,1706298632854,-746.41878368,0.00029796,2]
[312822434,1706298638255,-695.29,0.00029669,2]
[312822435,1706298638264,-154110.77865102,0.00029796,2]
[312822436,1706298638273,-523.90302311,0.00029797,4]
[312822437,1706298638283,-175.77811958,0.000298,2]
[312822438,1706298638293,-42854.6542977,0.00029896,2]
[312822439,1706298638305,-63860.85907277,0.00029896,2]
[312822440,1706298638316,-73001.45531397,0.00029896,2]
[312822441,1706298638328,-66629.88013394,0.00029896,2]
[312822442,1706298638337,-800.9031,0.000299,2]
[312822443,1706298638347,-170.3308,0.000299,2]
[312822444,1706298638357,-153.15620009,0.000299,2]
[312822445,1706298638367,-1089.24268976,0.000299,2]
[312822446,1706298638378,-169.31838675,0.000299,2]
[312822447,1706298638388,-490.78246605,0.000299,2]
[312822448,1706298638398,-164.28,0.0002993,2]
[312822449,1706298638407,-156.11668877,0.00029996,2]
[312822450,1706298638417,-1945.23204159,0.00029996,2]
[312822451,1706298638427,-608.07641091,0.00029997,2]
[312822452,1706298638437,-264.59547339,0.00029998,2]
[312822453,1706298638446,-1337.5918033,0.00029998,2]
[312822454,1706298638455,-598.62692075,0.00029998,2]
[312822455,1706298638465,-180.90411052,0.00029998,2]
[312822456,1706298638474,-209.26071767,0.00029998,2]
[312822457,1706298638484,-281.30437133,0.00029998,2]
[312822458,1706298638494,-1191.54006023,0.00029998,2]
[312822459,1706298638503,-319.23605445,0.00029998,2]
[312822460,1706298638513,-39447.2036719,0.00029998,2]
[312822461,1706298638523,-380.31380972,0.00029999,2]
[312822462,1706298638533,-209.75675693,0.00029999,2]
[312822463,1706298638542,-1809.60794459,0.0003,4]
[312822464,1706298638551,-73066.26381624,0.0003,4]
[312822465,1706298638561,-95165.09984519,0.0003,4]
[312822466,1706298638574,-118677.0495733,0.0003,4]
[312822467,1706298638585,-28837.25202624,0.0003,4]
[312822468,1706298638597,-66768.64168355,0.0003,4]
[312822469,1706298638607,-155.0,0.0003,2]
[312822470,1706298638616,-155.0,0.0003,4]
[312822471,1706298638628,-173.12219542,0.0003,4]
[312822472,1706298638638,-30120.32269243,0.0003,4]
[312822473,1706298638650,-1512.623474,0.0003,4]
[312822474,1706298638664,-360.0,0.0003,4]
[312822476,1706298638676,-3700.04112529,0.0003,4]
[312822477,1706298638690,-3165.75131839,0.0003,4]
[312822478,1706298638700,-374.99862499,0.0003,2]
[312822479,1706298638709,-3000.0,0.0003,2]
[312822480,1706298638719,-288.18313379,0.0003,2]
[312822481,1706298638729,-288.18313379,0.0003,2]
[312822482,1706298638740,-288.18313379,0.0003,2]
[312822483,1706298638750,-288.18313379,0.0003,2]
[312822484,1706298638760,-288.18313379,0.0003,2]
[312822485,1706298638770,-288.18313379,0.0003,2]
[312822486,1706298638780,-288.18313379,0.0003,2]
[312822487,1706298638790,-288.18313379,0.0003,2]
[312822488,1706298638800,-288.18313379,0.0003,2]
[312822489,1706298638809,-288.18313379,0.0003,2]
[312822490,1706298638819,-288.18313379,0.0003,2]
[312822491,1706298638829,-288.18313379,0.0003,2]
[312822492,1706298638839,-288.18313379,0.0003,2]
[312822493,1706298638849,-288.18313379,0.0003,2]
[312822494,1706298638858,-288.18313379,0.0003,2]
[312822495,1706298638867,-288.18313379,0.0003,2]
[312822496,1706298638878,-288.18313379,0.0003,2]
[312822497,1706298638887,-288.18313379,0.0003,2]
[312822498,1706298638897,-288.18313379,0.0003,2]
[312822499,1706298638906,-288.18313379,0.0003,2]
[312822500,1706298638915,-3000.0,0.0003001,2]
[312822501,1706298638925,-3000.0,0.0003002,2]
[312822502,1706298638934,-3000.0,0.0003003,2]
[312822503,1706298638943,-1896.78244359,0.0003004,2]
[312822504,1706298638956,-851.18,0.0003004,2]
[312822505,1706298638976,-252.03755641,0.0003004,2]
[312822506,1706298638986,-3000.0,0.0003005,2]
[312822507,1706298638995,-3000.0,0.0003006,2]
[312822508,1706298639005,-3801.729528,0.0003007,2]
[312822509,1706298639014,-152.88,0.00030105,2]
[312822510,1706298639024,-154.06,0.00030137,2]
[312822511,1706298639034,-210.0,0.00030322,2]
[312822512,1706298639045,-191.03,0.00030742,2]
[312822513,1706298639054,-964.72,0.00030743,2]
[312822514,1706298639064,-1000.0,0.00030758,2]
[312822515,1706298639073,-162.01,0.00030822,2]
[312822516,1706298639083,-180.0,0.00031644,2]
[312822517,1706298639092,-964.72,0.00031767,2]
[312822518,1706298639101,-14623.180418,0.000318,2]
[312822519,1706298639111,-162.01,0.00031849,2]
[312822520,1706298639121,-490.78246604,0.0003185,4]
[312822521,1706298639132,-5000.0,0.0003189,2]
[312822522,1706298639142,-1089.24268968,0.00032218,4]
[312822523,1706298639151,-191.03,0.00032385,2]
[312822524,1706298639160,-291.32955868,0.000324,2]
[312822525,1706298639170,-291.32955866,0.000324,2]
[312822526,1706298639180,-291.32955866,0.000324,2]
[312822527,1706298639189,-291.32955866,0.000324,2]
[312822528,1706298639198,-291.32955866,0.000324,2]
[312822529,1706298639208,-152.88,0.00032495,2]
[312822530,1706298639217,-150.0,0.00032539,2]
[312822531,1706298639227,-256.0,0.00032539,2]
[312822532,1706298639237,-162.01,0.00032877,2]
[312822533,1706298639246,-661.82,0.00032877,15]
[312822534,1706298639255,-291.32955866,0.00032982,2]
[312822535,1706298639265,-182583.19694725,0.00033,4]
[312822536,1706298639275,-2264.77741779,0.00033199,6]
[312822537,1706298639285,-226.47774178,0.00033199,3]
[312822538,1706298639294,-523.90302305,0.00033455,6]
[312822539,1706298639303,-153.15620004,0.00033525,2]
[312822540,1706298639313,-291.32955866,0.00033619,2]
[312822541,1706298639323,-490.78246604,0.00033799,7]
[312822542,1706298639333,-157.48604117,0.000338,4]
[312822543,1706298639342,-142209.67097883,0.00033897,2]
[312822544,1706298639364,-831.23955666,0.00033897,2]
[312822545,1706298639376,-2776.99734937,0.00033897,2]
[312822546,1706298639396,-1108.77575039,0.00033897,2]
[312822547,1706298639408,-1037.7367,0.00033897,2]
[312822548,1706298639420,-416.41116,0.00033897,2]
[312822549,1706298639431,-947.51887569,0.00033897,2]
[312822550,1706298639442,-3368.08959021,0.00033897,2]
[312822551,1706298639453,-92303.56003885,0.00033897,2]
[312822552,1706298639463,-1000.0,0.00033899,2]
[312822553,1706298639473,-256.2143402,0.00033996,4]
[312822554,1706298639483,-507.16322137,0.00034,4]
[312822555,1706298639493,-1000.0,0.00034,4]
[312822556,1706298639503,-191.03,0.00034029,2]
[312822557,1706298639512,-1000.0,0.00034176,2]
[312822558,1706298639522,-291.32955866,0.00034256,2]
[312822559,1706298639531,-1089.24268968,0.00034537,6]
[312822560,1706298639541,-150.0,0.00034548,10]
[312822561,1706298639550,-152.88,0.00034884,2]
[312822562,1706298639560,-291.32955866,0.00034893,2]
[312822563,1706298639570,-8975.56984561,0.000349,4]
[312822564,1706298639580,-549.03074208,0.000349,2]
[312822565,1706298639591,-1807.52,0.00035,5]
[312822566,1706298639601,-448.96913908,0.00035,4]
[312822567,1706298639610,-1794.68,0.00035,5]
[312822568,1706298639620,-155.0,0.00035,4]
[312822569,1706298639631,-1829.86,0.00035,5]
[312822570,1706298639640,-155.0,0.00035,2]
[312822571,1706298639649,-155.0,0.00035,2]
[312822572,1706298639663,-1651.67272182,0.00035,11]
[312822573,1706298639674,-1273.30411269,0.00035,11]
[312822577,1706298640711,-75.02316549,0.00035,11]
[312822578,1706298640721,-3000.0,0.0003501,11]
[312822579,1706298640730,-5508.373796,0.0003502,11]
[312822580,1706298640739,-4916.47418524,0.00035517,2]
[312822581,1706298640750,-291.32955866,0.0003553,2]
[312822582,1706298640759,-191.03,0.00035673,2]
[312822583,1706298640768,-298.54892352,0.00036,4]
[312822584,1706298640777,-470.8,0.000361,2]
[312822585,1706298640786,-291.32955866,0.00036167,2]
[312822586,1706298640794,-305.77628518,0.00036465,4]
[312822587,1706298640803,-661.82,0.00036613,15]
[312822588,1706298640812,-291.32955866,0.00036804,2]
[312822589,1706298640821,-1089.24268968,0.00036855,9]
[312822590,1706298640830,-310.4579952,0.00037,4]
[312822591,1706298640839,-523.90302305,0.00037113,8]
[312822592,1706298640848,-153.15620004,0.0003715,2]
[312822593,1706298640857,-152.88,0.00037274,2]
[312822594,1706298640866,-158.42,0.000373,3]
[312822595,1706298640875,-1376.04,0.000373,3]
[312822596,1706298640885,-1376.04,0.000373,3]
[312822597,1706298640893,-1376.04,0.000373,3]
[312822598,1706298640902,-1376.04,0.000373,3]
[312822599,1706298640912,-1376.04,0.000373,3]
[312822600,1706298640921,-1376.04,0.000373,3]
[312822601,1706298640930,-1376.04,0.000373,3]
[312822602,1706298640939,-1376.04,0.000373,3]
[312822603,1706298640948,-1376.04,0.000373,3]
[312822604,1706298640958,-1376.04,0.000373,3]
[312822605,1706298640968,-1376.04,0.000373,3]
[312822606,1706298640978,-1376.04,0.000373,3]
[312822607,1706298640989,-1376.04,0.000373,3]
[312822608,1706298640998,-1376.04,0.000373,3]
[312822609,1706298641008,-1376.04,0.000373,3]
[312822610,1706298641018,-1376.04,0.000373,3]
[312822611,1706298641028,-1376.04,0.000373,3]
[312822612,1706298641038,-1376.04,0.000373,3]
[312822613,1706298641047,-1376.04,0.000373,3]
[312822614,1706298641057,-1376.04,0.000373,3]
[312822615,1706298641066,-153.14,0.000373,3]
[312822616,1706298641076,-153.14,0.000373,3]
[312822617,1706298641086,-291.32955866,0.00037441,2]
[312822618,1706298641094,-1000.0,0.00037594,2]
[312822619,1706298641104,-549.03074208,0.00037798,2]
[312822620,1706298641113,-550.60448646,0.00037833,2]
[312822621,1706298641122,-352.85622676,0.00037833,2]
[312822622,1706298641133,-1788.10228288,0.00037833,2]
[312822623,1706298641143,-7553.52186279,0.000379,2]
[312822624,1706298641152,-8911.40326443,0.000379,2]
[312822625,1706298641179,-553.54469613,0.000379,2]
[312822626,1706298641197,-2206.78429854,0.000379,2]
[312822627,1706298641208,-1362.86,0.000379,2]
[312822628,1706298641220,-1596.30909,0.000379,2]
[312822629,1706298641606,-508.90128622,0.000379,2]
[312822634,1706298643395,-602365.83160668,0.000379,2]
[312822635,1706298643406,-354.82,0.00038033,2]
[312822636,1706298643416,-291.32955866,0.00038078,2]
[312822637,1706298643426,-150.0,0.00038356,2]
[312822638,1706298643435,-291.32955866,0.00038715,2]
[312822639,1706298643445,-1880.74,0.00038799,2]
[312822640,1706298643454,-620.98111301,0.00039,4]
[312822641,1706298643464,-1430.39000108,0.00039,2]
[312822642,1706298643473,-3000.0,0.00039,24]
[312822643,1706298643482,-3000.0,0.0003901,24]
[312822644,1706298643491,-5508.373796,0.0003902,24]
[312822645,1706298643501,-1089.24268968,0.00039174,12]
[312822646,1706298643510,-291.32955866,0.00039352,2]
[312822647,1706298643519,-152.88,0.00039663,2]
[312822648,1706298643529,-2000.0,0.000399,4]
[312822649,1706298643649,-350.00012537,0.000399,4]
[312822650,1706298643664,-1000.00920484,0.0004,60]
[312822651,1706298643673,-22057.01652935,0.0004,4]
[312822652,1706298643682,-54346.11047477,0.0004,4]
[312822653,1706298643691,-2682.20943181,0.0004,4]
[312822654,1706298643702,-1287.72,0.00040018,2]
[312822655,1706298643711,-723.21104849,0.00040261,12]
[312822656,1706298643720,-661.82,0.00040349,15]
[312822657,1706298643730,-150.0,0.00040753,2]
[312822658,1706298643739,-523.90302305,0.00040771,10]
[312822659,1706298643748,-153.15620004,0.00040775,9]
[312822660,1706298643757,-195.22074048,0.00040797,2]
[312822661,1706298643766,-3446.81164643,0.00041,4]
[312822662,1706298643775,-150.79,0.00041,2]
[312822663,1706298643784,-150.79,0.00041,2]
[312822664,1706298643793,-150.79,0.00041,2]
[312822665,1706298643803,-150.79,0.00041,2]
[312822666,1706298643811,-150.79,0.00041,2]
[312822667,1706298643821,-150.79,0.00041,2]
[312822668,1706298643830,-150.79,0.00041,2]
[312822669,1706298643839,-150.79,0.00041,2]
[312822670,1706298643848,-1000.0,0.00041011,2]
[312822671,1706298643858,-150.0,0.00041284,10]
[312822672,1706298643867,-1089.24268968,0.00041492,15]
[312822673,1706298643876,-183.93241377,0.00041522,4]
[312822674,1706298643885,-1760.0,0.0004179,2]
[312822675,1706298643894,-3387.0,0.0004179,3]
[312822676,1706298643903,-1261.11643049,0.00041798,2]
[312822677,1706298643912,-905.41355492,0.00041798,4]
[312822678,1706298643921,-158.98643164,0.00041798,4]
[312822679,1706298643931,-462.65503608,0.00041798,4]
[312822680,1706298643941,-155.0,0.00041799,2]
[312822681,1706298643950,-17500.0,0.000418,37]
[312822682,1706298643959,-150.79,0.0004188,2]
[312822683,1706298643968,-18359.0,0.0004189,2]
[312822684,1706298643977,-24856.0,0.0004189,3]
[312822685,1706298643987,-12061.0,0.0004189,2]
[312822686,1706298643996,-13672.0,0.0004189,3]
[312822687,1706298644006,-157.35484897,0.00041977,4]
[312822688,1706298644015,-150.79,0.0004199,2]
[312822689,1706298644024,-150.79,0.0004199,2]
[312822690,1706298644033,-150.79,0.0004199,2]
[312822691,1706298644042,-150.79,0.0004199,2]
[312822692,1706298644051,-150.79,0.0004199,2]
[312822693,1706298644061,-293.17542928,0.00041999,4]
[312822694,1706298644070,-197.50340365,0.00041999,4]
[312822695,1706298644079,-129520.46721215,0.00041999,2]
[312822696,1706298644088,-183.31693013,0.00041999,4]
[312822697,1706298644097,-231.98170055,0.00041999,3]
[312822698,1706298644106,-180.03822101,0.00041999,3]
[312822699,1706298644116,-50000.0,0.00042,22]
[312822700,1706298644125,-72481.11224606,0.00042,3]
[312822701,1706298644137,-4150.0,0.00042,3]